fUSD/lending_fUSD_20250530
["ID","MTS","AMOUNT","RATE_DAILY","PERIOD"]
[363114882,1748586639138,-420.0,0.00021917,2]
[363114883,1748586639148,-457.6396823,0.00021917,2]
[363114884,1748586639158,-420.0,0.00021917,2]
[363114885,1748586639167,-420.0,0.00021917,2]
[363114886,1748586639177,-420.0,0.00021917,2]
[363114887,1748586639188,-420.0,0.00021917,2]
[363114888,1748586639197,-420.0,0.00021917,2]
[363114889,1748586639207,-439.64,0.00021917,2]
[363114890,1748586639216,-420.0,0.00021917,2]
[363114891,1748586639226,-420.0,0.00021917,2]
[363114892,1748586639235,-1305.73,0.00021917,2]
[363114893,1748586639244,-420.0,0.00021917,2]
[363114894,1748586639254,-420.0,0.00021917,2]
[363114895,1748586639264,-637.35,0.00021917,2]
[363114896,1748586639274,-420.0,0.00021917,2]
[363114898,1748586639283,-420.0,0.00021917,2]
[363114899,1748586639293,-420.0,0.00021917,2]
[363114900,1748586639303,-420.0,0.00021917,2]
[363114902,1748586639312,-420.0,0.00021917,2]
[363114904,1748586639322,-420.0,0.00021917,2]
[363114906,1748586639331,-473.31,0.00021917,2]
[363114908,1748586639340,-300.0,0.00021917,2]
[363114910,1748586639350,-420.0,0.00021917,2]
[363114912,1748586639360,-420.0,0.00021917,2]
[363114914,1748586639370,-420.0,0.00021917,2]
[363114916,1748586639379,-828.38,0.00021917,2]
[363114918,1748586639389,-420.0,0.00021917,2]
[363114920,1748586639399,-553.26,0.00021917,2]
[363114922,1748586639408,-420.0,0.00021917,2]
[363114924,1748586639418,-420.0,0.00021917,2]
[363114926,1748586639427,-513.22,0.00021917,2]
[363114928,1748586639437,-420.0,0.00021917,2]
[363114930,1748586639450,-420.0,0.00021917,2]
[363114932,1748586639459,-420.0,0.00021917,2]
[363114935,1748586639469,-420.0,0.00021917,2]
[363114936,1748586639478,-420.0,0.00021917,2]
[363114938,1748586639488,-268.15,0.00021917,2]
[363114940,1748586639497,-420.0,0.00021917,2]
[363114942,1748586639507,-420.0,0.00021917,2]
[363114944,1748586639516,-420.0,0.00021917,2]
[363114946,1748586639528,-420.0,0.00021917,2]
[363114948,1748586639537,-420.0,0.00021917,2]
[363114950,1748586639547,-420.0,0.00021917,2]
[363114952,1748586639556,-420.0,0.00021917,2]
[363114954,1748586639567,-426.58148416,0.00021917,2]
[363114956,1748586639576,-420.0,0.00021917,2]
[363114958,1748586639586,-420.0,0.00021917,2]
[363114960,1748586639596,-420.0,0.00021917,2]
[363114962,1748586639607,-506.44,0.00021917,2]
[363114964,1748586639617,-420.0,0.00021917,2]
[363114967,1748586639626,-420.0,0.00021917,2]
[363114968,1748586639635,-420.0,0.00021917,2]
[363114972,1748586639645,-420.0,0.00021917,2]
[363114974,1748586639654,-420.0,0.00021917,2]
[363114975,1748586639663,-592.72,0.00021917,2]
[363114978,1748586639673,-420.0,0.00021917,2]
[363114980,1748586639683,-420.0,0.00021917,2]
[363114982,1748586639694,-420.0,0.00021917,2]
[363114984,1748586639703,-420.0,0.00021917,2]
[363114986,1748586639713,-842.01,0.00021917,2]
[363114988,1748586639722,-420.0,0.00021917,2]
[363114990,1748586639732,-420.0,0.00021917,2]
[363114992,1748586639741,-420.0,0.00021917,2]
[363114994,1748586639750,-420.0,0.00021917,2]
[363114996,1748586639760,-420.0,0.00021917,2]
[363114998,1748586639769,-420.0,0.00021917,2]
[363115000,1748586639779,-420.0,0.00021917,2]
[363115002,1748586639789,-420.0,0.00021917,2]
[363115004,1748586639798,-420.0,0.00021917,2]
[363115006,1748586639809,-420.0,0.00021917,2]
[363115008,1748586639818,-420.0,0.00021917,2]
[363115010,1748586639827,-420.0,0.00021917,2]
[363115012,1748586639837,-490.2,0.00021917,2]
[363115014,1748586639847,-420.0,0.00021917,2]
[363115016,1748586639856,-420.0,0.00021917,2]
[363115018,1748586639867,-420.0,0.00021917,2]
[363115021,1748586639876,-420.0,0.00021917,2]
[363115023,1748586639885,-420.0,0.00021917,2]
[363115025,1748586639894,-420.0,0.00021917,2]
[363115027,1748586639904,-420.0,0.00021917,2]
[363115029,1748586639913,-420.0,0.00021917,2]
[363115031,1748586639922,-420.0,0.00021917,2]
[363115033,1748586639932,-1152.87,0.00021917,2]
[363115035,1748586639941,-466.55157668,0.00021917,2]
[363115037,1748586639950,-420.0,0.00021917,2]
[363115039,1748586639959,-475.46,0.00021917,2]
[363115040,1748586639968,-420.0,0.00021917,2]
[363115042,1748586639977,-220.23481666,0.00021917,2]
[363115044,1748586639987,-420.0,0.00021917,2]
[363115046,1748586639996,-420.0,0.00021917,2]
[363115048,1748586640005,-420.0,0.00021917,2]
[363115050,1748586640015,-420.0,0.00021917,2]
[363115053,1748586640024,-420.0,0.00021917,2]
[363115054,1748586640033,-420.0,0.00021917,2]
[363115056,1748586640042,-420.0,0.00021917,2]
[363115058,1748586640052,-420.0,0.00021917,2]
[363115060,1748586640061,-604.24,0.00021917,2]
[363115062,1748586640070,-420.0,0.00021917,2]
[363115064,1748586640079,-420.0,0.00021917,2]
[363115066,1748586640094,-420.0,0.00021917,2]
[363115068,1748586640105,-420.0,0.00021917,2]
[363115070,1748586640115,-420.0,0.00021917,2]
[363115072,1748586640124,-420.0,0.00021917,2]
[363115074,1748586640133,-420.0,0.00021917,2]
[363115076,1748586640143,-420.0,0.00021917,2]
[363115078,1748586640152,-420.0,0.00021917,2]
[363115080,1748586640162,-420.0,0.00021917,2]
[363115083,1748586640172,-420.0,0.00021917,2]
[363115084,1748586640181,-420.0,0.00021917,2]
[363115086,1748586640192,-420.0,0.00021917,2]
[363115088,1748586640202,-485.53,0.00021917,2]
[363115090,1748586640211,-440.59,0.00021917,2]
[363115093,1748586640221,-420.0,0.00021917,2]
[363115095,1748586640231,-420.0,0.00021917,2]
[363115096,1748586640240,-421.21367918,0.00021917,2]
[363115098,1748586640249,-420.0,0.00021917,2]
[363115101,1748586640259,-420.0,0.00021917,2]
[363115102,1748586640268,-420.0,0.00021917,2]
[363115133,1748586640508,-420.0,0.00021917,2]
[363115135,1748586640518,-443.06,0.00021917,2]
[363115137,1748586640533,-420.0,0.00021917,2]
[363115139,1748586640543,-1171.26,0.00021917,2]
[363115141,1748586640552,-486.42753267,0.00021917,2]
[363115143,1748586640562,-420.0,0.00021917,2]
[363115145,1748586640573,-202.37962199,0.00021917,2]
[363115147,1748586640582,-420.0,0.00021917,2]
[363115149,1748586640591,-573.79,0.00021917,2]
[363115151,1748586640601,-420.0,0.00021917,2]
[363115153,1748586640610,-557.41,0.00021917,2]
[363115155,1748586640619,-420.0,0.00021917,2]
[363115157,1748586640629,-420.0,0.00021917,2]
[363115159,1748586640638,-420.0,0.00021917,2]
[363115161,1748586640647,-420.0,0.00021917,2]
[363115163,1748586640656,-420.0,0.00021917,2]
[363115165,1748586640665,-420.0,0.00021917,2]
[363115167,1748586640674,-420.0,0.00021917,2]
[363115169,1748586640684,-420.0,0.00021917,2]
[363115171,1748586640695,-420.0,0.00021917,2]
[363115173,1748586640705,-271.49701578,0.00021917,2]
[363115175,1748586640714,-420.0,0.00021917,2]
[363115177,1748586640723,-420.0,0.00021917,2]
[363115179,1748586640732,-420.0,0.00021917,2]
[363115181,1748586640741,-420.0,0.00021917,2]
[363115183,1748586640750,-420.0,0.00021917,2]
[363115184,1748586640759,-420.0,0.00021917,2]
[363115186,1748586640767,-932.91,0.00021917,2]
[363115188,1748586640777,-420.0,0.00021917,2]
[363115190,1748586640785,-429.19475543,0.00021917,2]
[363115192,1748586640794,-271.72721888,0.00021917,2]
[363115194,1748586640803,-425.35899265,0.00021917,2]
[363115196,1748586640812,-422.95109081,0.00021917,2]
[363115198,1748586640821,-420.0,0.00021917,2]
[363115200,1748586640829,-420.0,0.00021917,2]
[363115202,1748586640838,-420.0,0.00021917,2]
[363115204,1748586640847,-424.2585971,0.00021917,2]
[363115206,1748586640855,-420.0,0.00021917,2]
[363115208,1748586640864,-420.0,0.00021917,2]
[363115210,1748586640874,-425.36307424,0.00021917,2]
[363115212,1748586640883,-426.45958641,0.00021917,2]
[363115214,1748586640892,-1055.73,0.00021917,2]
[363115217,1748586640901,-457.02,0.00021917,2]
[363115219,1748586640910,-420.0,0.00021917,2]
[363115220,1748586640920,-420.0,0.00021917,2]
[363115222,1748586640929,-502.03639381,0.00021917,2]
[363115224,1748586640939,-420.0,0.00021917,2]
[363115227,1748586640950,-420.0,0.00021917,2]
[363115228,1748586640968,-652.35,0.00021917,2]
[363115230,1748586640977,-365.67340357,0.00021917,2]
[363115232,1748586640987,-420.0,0.00021917,2]
[363115234,1748586640996,-420.0,0.00021917,2]
[363115236,1748586641005,-420.0,0.00021917,2]
[363115238,1748586641014,-428.79826855,0.00021917,2]
[363115240,1748586641024,-420.0,0.00021917,2]
[363115242,1748586641034,-460.47,0.00021917,2]
[363115244,1748586641043,-2304.27,0.00021917,2]
[363115246,1748586641051,-420.0,0.00021917,2]
[363115248,1748586641060,-420.0,0.00021917,2]
[363115250,1748586641069,-420.0,0.00021917,2]
[363115252,1748586641078,-420.0,0.00021917,2]
[363115254,1748586641088,-1308.5,0.00021917,2]
[363115256,1748586641098,-420.0,0.00021917,2]
[363115258,1748586641107,-615.44,0.00021917,2]
[363115260,1748586641117,-424.39540717,0.00021917,2]
[363115262,1748586641127,-420.0,0.00021917,2]
[363115264,1748586641136,-420.0,0.00021917,2]
[363115266,1748586641146,-516.3,0.00021917,2]
[363115268,1748586641155,-815.32,0.00021917,2]
[363115269,1748586641165,-420.0,0.00021917,2]
[363115270,1748586641175,-1014.1,0.00021917,2]
[363115271,1748586641184,-420.0,0.00021917,2]
[363115272,1748586641194,-420.0,0.00021917,2]
[363115273,1748586641203,-426.83256011,0.00021917,2]
[363115274,1748586641212,-494.65,0.00021917,2]
[363115275,1748586641221,-763.99,0.00021917,2]
[363115276,1748586641230,-537.71504359,0.00021917,2]
[363115277,1748586641239,-552.1,0.00021917,2]
[363115278,1748586641249,-431.97950367,0.00021917,2]
[363115280,1748586641259,-1172.55,0.00021917,2]
[363115282,1748586641268,-420.0,0.00021917,2]
[363115284,1748586641278,-420.0,0.00021917,2]
[363115286,1748586641287,-420.0,0.00021917,2]
[363115288,1748586641296,-420.0,0.00021917,2]
[363115290,1748586641305,-962.11,0.00021917,2]
[363115292,1748586641314,-463.58,0.00021917,2]
[363115294,1748586641324,-420.0,0.00021917,2]
[363115296,1748586641332,-428.62260274,0.00021917,2]
[363115298,1748586641342,-420.0,0.00021917,2]
[363115300,1748586641351,-468.18,0.00021917,2]
[363115302,1748586641361,-420.0,0.00021917,2]
[363115304,1748586641370,-420.0,0.00021917,2]
[363115306,1748586641380,-516.31259453,0.00021917,2]
[363115308,1748586641389,-466.86,0.00021917,2]
[363115310,1748586641399,-420.0,0.00021917,2]
[363115312,1748586641408,-819.71,0.00021917,2]
[363115314,1748586641417,-915.48,0.00021917,2]
[363115316,1748586641426,-420.0,0.00021917,2]
[363115318,1748586641436,-558.94,0.00021917,2]
[363115320,1748586641446,-1241.75,0.00021917,2]
[363115322,1748586641455,-530.65412982,0.00021917,2]
[363115324,1748586641464,-420.0,0.00021917,2]
[363115326,1748586641473,-420.0,0.00021917,2]
[363115328,1748586641482,-446.83,0.00021917,2]
[363115330,1748586641491,-792.94,0.00021917,2]
[363115332,1748586641500,-420.0,0.00021917,2]
[363115334,1748586641510,-420.0,0.00021917,2]
[363115336,1748586641519,-420.0,0.00021917,2]
[363115338,1748586641533,-883.9,0.00021917,2]
[363115340,1748586641542,-994.66,0.00021917,2]
[363115342,1748586641551,-1511.72,0.00021917,2]
[363115344,1748586641561,-420.0,0.00021917,2]
[363115346,1748586641571,-420.0,0.00021917,2]
[363115348,1748586641580,-420.0,0.00021917,2]
[363115350,1748586641589,-420.0,0.00021917,2]
[363115352,1748586641599,-420.0,0.00021917,2]
[363115354,1748586641610,-420.0,0.00021917,2]
[363115356,1748586641619,-420.0,0.00021917,2]
[363115358,1748586641628,-505.66,0.00021917,2]
[363115360,1748586641638,-420.0,0.00021917,2]
[363115362,1748586641647,-420.0,0.00021917,2]
[363115364,1748586641656,-1809.87,0.00021917,2]
[363115366,1748586641666,-425.53,0.00021917,2]
[363115368,1748586641675,-420.0,0.00021917,2]
[363115370,1748586641684,-420.0,0.00021917,2]
[363115372,1748586641693,-727.33,0.00021917,2]
[363115374,1748586641703,-420.0,0.00021917,2]
[363115376,1748586641712,-420.0,0.00021917,2]
[363115378,1748586641722,-420.0,0.00021917,2]
[363115380,1748586641732,-1396.4,0.00021917,2]
[363115382,1748586641741,-420.0,0.00021917,2]
[363115384,1748586641750,-723.82,0.00021917,2]
[363115386,1748586641759,-554.74,0.00021917,2]
[363115388,1748586641769,-1155.46,0.00021917,2]
[363115390,1748586641779,-967.4,0.00021917,2]
[363115392,1748586641788,-518.02,0.00021917,2]
[363115394,1748586641798,-2575.15,0.00021917,2]
[363115396,1748586641807,-420.0,0.00021917,2]
[363115398,1748586641817,-538.59,0.00021917,2]
[363115400,1748586641826,-420.0,0.00021917,2]
[363115402,1748586641836,-420.0,0.00021917,2]
[363115404,1748586641846,-566.75,0.00021917,2]
[363115406,1748586641855,-420.0,0.00021917,2]
[363115408,1748586641864,-420.0,0.00021917,2]
[363115410,1748586641873,-754.87,0.00021917,2]
[363115412,1748586641882,-1809.3,0.00021917,2]
[363115414,1748586641891,-1006.04,0.00021917,2]
[363115416,1748586641901,-656.67,0.00021917,2]
[363115418,1748586641910,-1166.98,0.00021917,2]
[363115420,1748586641920,-442.55282783,0.00021917,2]
[363115422,1748586641929,-420.0,0.00021917,2]
[363115424,1748586641938,-420.0,0.00021917,2]
[363115426,1748586641948,-303.11110677,0.00021917,2]
[363115428,1748586641958,-420.0,0.00021917,2]
[363115430,1748586641967,-420.0,0.00021917,2]
[363115432,1748586641976,-867.54,0.00021917,2]
[363115434,1748586641986,-221.90502367,0.00021917,2]
[363115436,1748586641995,-1138.14,0.00021917,2]
[363115438,1748586642004,-423.56,0.00021917,2]
[363115440,1748586642013,-668.08,0.00021917,2]
[363115442,1748586642022,-420.0,0.00021917,2]
[363115444,1748586642031,-766.63,0.00021917,2]
[363115446,1748586642040,-420.0,0.00021917,2]
[363115448,1748586642049,-1905.89,0.00021917,2]
[363115450,1748586642058,-1210.45,0.00021917,2]
[363115452,1748586642067,-420.0,0.00021917,2]
[363115454,1748586642077,-665.66,0.00021917,2]
[363115456,1748586642087,-1273.42,0.00021917,2]
[363115458,1748586642097,-420.0,0.00021917,2]
[363115460,1748586642106,-1239.93,0.00021917,2]
[363115462,1748586642115,-420.0,0.00021917,2]
[363115464,1748586642124,-420.0,0.00021917,2]
[363115466,1748586642134,-1389.05,0.00021917,2]
[363115468,1748586642143,-746.44,0.00021917,2]
[363115470,1748586642153,-903.02,0.00021917,2]
[363115472,1748586642163,-477.86,0.00021917,2]
[363115474,1748586642173,-658.76,0.00021917,2]
[363115476,1748586642184,-593.99,0.00021917,2]
[363115478,1748586642193,-587.89,0.00021917,2]
[363115480,1748586642203,-420.0,0.00021917,2]
[363115482,1748586642212,-1238.3,0.00021917,2]
[363115484,1748586642222,-420.0,0.00021917,2]
[363115486,1748586642232,-1351.74,0.00021917,2]
[363115488,1748586642241,-548.49,0.00021917,2]
[363115490,1748586642251,-420.0,0.00021917,2]
[363115492,1748586642260,-420.0,0.00021917,2]
[363115494,1748586642269,-420.0,0.00021917,2]
[363115496,1748586642278,-447.44,0.00021917,2]
[363115498,1748586642287,-654.98,0.00021917,2]
[363115500,1748586642297,-459.23,0.00021917,2]
[363115502,1748586642306,-1060.65,0.00021917,2]
[363115503,1748586642315,-420.0,0.00021917,2]
[363115506,1748586642324,-420.0,0.00021917,2]
[363115508,1748586642334,-420.0,0.00021917,2]
[363115510,1748586642344,-420.0,0.00021917,2]
[363115512,1748586642353,-861.52,0.00021917,2]
[363115514,1748586642363,-1193.18,0.00021917,2]
[363115516,1748586642372,-867.5,0.00021917,2]
[363115518,1748586642382,-420.0,0.00021917,2]
[363115520,1748586642391,-507.56,0.00021917,2]
[363115522,1748586642401,-420.0,0.00021917,2]
[363115524,1748586642410,-420.0,0.00021917,2]
[363115526,1748586642419,-852.29,0.00021917,2]
[363115528,1748586642429,-829.06,0.00021917,2]
[363115530,1748586642439,-420.0,0.00021917,2]
[363115532,1748586642451,-420.0,0.00021917,2]
[363115534,1748586642460,-420.0,0.00021917,2]
[363115536,1748586642471,-1612.04,0.00021917,2]
[363115538,1748586642481,-275.77848789,0.00021917,2]
[363115540,1748586642491,-420.0,0.00021917,2]
[363115542,1748586642500,-420.0,0.00021917,2]
[363115544,1748586642511,-420.0,0.00021917,2]
[363115546,1748586642521,-420.0,0.00021917,2]
[363115548,1748586642534,-431.84,0.00021917,2]
[363115550,1748586642543,-500.0,0.00021917,2]
[363115552,1748586642553,-500.0,0.00021917,2]
[363115554,1748586642563,-500.0,0.00021917,2]
[363115556,1748586642573,-585.11,0.00021917,2]
[363115558,1748586642583,-978.73,0.00021917,2]
[363115560,1748586642594,-558.42,0.00021917,2]
[363115562,1748586642605,-1105.69,0.00021917,2]
[363115565,1748586642615,-1308.12,0.00021917,2]
[363115567,1748586642626,-438.42,0.00021917,2]
[363115569,1748586642635,-460.27214446,0.00021917,2]
[363115570,1748586642645,-470.47,0.00021917,2]
[363115571,1748586642654,-420.0,0.00021917,2]
[363115573,1748586642663,-1083.29,0.00021917,2]
[363115575,1748586642674,-438.53,0.00021917,2]
[363115577,1748586642684,-508.35,0.00021917,2]
[363115579,1748586642694,-552.97,0.00021917,2]
[363115581,1748586642703,-420.0,0.00021917,2]
[363115583,1748586642713,-420.0,0.00021917,2]
[363115585,1748586642722,-420.0,0.00021917,2]
[363115587,1748586642732,-969.7,0.00021917,2]
[363115589,1748586642742,-420.0,0.00021917,2]
[363115591,1748586642751,-420.0,0.00021917,2]
[363115592,1748586642761,-420.0,0.00021917,2]
[363115594,1748586642771,-429.25,0.00021917,2]
[363115596,1748586642780,-479.59,0.00021917,2]
[363115598,1748586642790,-420.0,0.00021917,2]
[363115599,1748586642799,-420.0,0.00021917,2]
[363115601,1748586642809,-591.6,0.00021917,2]
[363115603,1748586642819,-420.0,0.00021917,2]
[363115605,1748586642828,-420.0,0.00021917,2]
[363115607,1748586642838,-420.0,0.00021917,2]
[363115609,1748586642847,-420.0,0.00021917,2]
[363115611,1748586642856,-1451.15,0.00021917,2]
[363115613,1748586642865,-420.0,0.00021917,2]
[363115615,1748586642875,-420.0,0.00021917,2]
[363115617,1748586642884,-420.0,0.00021917,2]
[363115619,1748586642893,-420.0,0.00021917,2]
[363115621,1748586642903,-508.64,0.00021917,2]
[363115623,1748586642913,-1043.21,0.00021917,2]
[363115625,1748586642923,-663.47,0.00021917,2]
[363115627,1748586642933,-420.0,0.00021917,2]
[363115628,1748586642943,-420.0,0.00021917,2]
[363115629,1748586642954,-811.61,0.00021917,2]
[363115630,1748586642963,-1236.52,0.00021917,2]
[363115631,1748586642973,-420.0,0.00021917,2]
[363115632,1748586642983,-420.0,0.00021917,2]
[363115633,1748586642993,-1043.02,0.00021917,2]
[363115634,1748586643003,-364.32266137,0.00021917,2]
[363115635,1748586643013,-420.0,0.00021917,2]
[363115636,1748586643023,-420.0,0.00021917,2]
[363115637,1748586643033,-420.0,0.00021917,2]
[363115638,1748586643043,-964.5,0.00021917,2]
[363115639,1748586643052,-1006.52,0.00021917,2]
[363115640,1748586643062,-1274.93,0.00021917,2]
[363115641,1748586643071,-963.05,0.00021917,2]
[363115642,1748586643080,-1811.51,0.00021917,2]
[363115643,1748586643090,-1333.71,0.00021917,2]
[363115644,1748586643099,-420.0,0.00021917,2]
[363115645,1748586643109,-740.93,0.00021917,2]
[363115646,1748586643119,-538.93,0.00021917,2]
[363115647,1748586643129,-423.50120856,0.00021917,2]
[363115648,1748586643139,-457.41666003,0.00021917,2]
[363115649,1748586643149,-420.0,0.00021917,2]
[363115650,1748586643158,-552.92,0.00021917,2]
[363115651,1748586643168,-420.0,0.00021917,2]
[363115652,1748586643178,-1179.8,0.00021917,2]
[363115653,1748586643187,-420.0,0.00021917,2]
[363115654,1748586643197,-420.0,0.00021917,2]
[363115655,1748586643207,-423.00893426,0.00021917,2]
[363115656,1748586643217,-420.0,0.00021917,2]
[363115657,1748586643226,-420.0,0.00021917,2]
[363115658,1748586643235,-420.0,0.00021917,2]
[363115659,1748586643244,-185.44131668,0.00021917,2]
[363115660,1748586643253,-426.3387184,0.00021917,2]
[363115661,1748586643262,-496.26,0.00021917,2]
[363115663,1748586643272,-420.0,0.00021917,2]
[363115665,1748586643281,-514.93,0.00021917,2]
[363115667,1748586643291,-420.0,0.00021917,2]
[363115669,1748586643300,-725.9,0.00021917,2]
[363115671,1748586643310,-570.37,0.00021917,2]
[363115674,1748586643320,-1672.04,0.00021917,2]
[363115675,1748586643329,-420.0,0.00021917,2]
[363115677,1748586643339,-296.60577493,0.00021917,2]
[363115680,1748586643348,-363.95979493,0.00021917,2]
[363115681,1748586643358,-982.06,0.00021917,2]
[363115683,1748586643367,-420.0,0.00021917,2]
[363115685,1748586643376,-676.49,0.00021917,2]
[363115687,1748586643386,-429.07,0.00021917,2]
[363115689,1748586643395,-712.35,0.00021917,2]
[363115690,1748586643405,-537.65,0.00021917,2]
[363115691,1748586643414,-2503.74,0.00021917,2]
[363115692,1748586643423,-420.0,0.00021917,2]
[363115693,1748586643432,-511.24,0.00021917,2]
[363115694,1748586643442,-1356.29,0.00021917,2]
[363115695,1748586643451,-814.52,0.00021917,2]
[363115696,1748586643461,-455.13,0.00021917,2]
[363115697,1748586643471,-420.0,0.00021917,2]
[363115698,1748586643480,-420.0,0.00021917,2]
[363115699,1748586643490,-420.0,0.00021917,2]
[363115700,1748586643500,-5722.3,0.00021917,2]
[363115701,1748586643509,-420.0,0.00021917,2]
[363115702,1748586643520,-420.0,0.00021917,2]
[363115703,1748586643532,-420.0,0.00021917,2]
[363115704,1748586643541,-461.39,0.00021917,2]
[363115705,1748586643551,-420.0,0.00021917,2]
[363115706,1748586643560,-420.0,0.00021917,2]
[363115707,1748586643570,-498.18,0.00021917,2]
[363115708,1748586643579,-420.0,0.00021917,2]
[363115709,1748586643589,-3457.91,0.00021917,2]
[363115710,1748586643599,-420.0,0.00021917,2]
[363115711,1748586643609,-163.70265355,0.00021917,2]
[363115712,1748586643618,-1184.4,0.00021917,2]
[363115713,1748586643627,-420.0,0.00021917,2]
[363115714,1748586643636,-1193.94,0.00021917,2]
[363115715,1748586643646,-420.0,0.00021917,2]
[363115716,1748586643655,-156.041516,0.00021917,2]
[363115717,1748586643664,-1076.59,0.00021917,2]
[363115718,1748586643674,-2477.52,0.00021917,2]
[363115719,1748586643683,-18562.405429,0.00021917,2]
[363115720,1748586643694,-16060.966992,0.00021917,2]
[363115721,1748586643704,-10771.14,0.00021917,2]
[363115722,1748586643713,-1055.14,0.00021917,2]
[363115723,1748586643722,-420.0,0.00021917,2]
[363115724,1748586643732,-786.49,0.00021917,2]
[363115725,1748586643741,-1488.47,0.00021917,2]
[363115726,1748586643750,-923.36,0.00021917,2]
[363115727,1748586643760,-1016.54,0.00021917,2]
[363115728,1748586643769,-420.0,0.00021917,2]
[363115729,1748586643778,-5496.41,0.00021917,2]
[363115730,1748586643788,-425.83,0.00021917,2]
[363115731,1748586643797,-420.0,0.00021917,2]
[363115732,1748586643807,-1052.42,0.00021917,2]
[363115733,1748586643816,-420.0,0.00021917,2]
[363115734,1748586643829,-650.46,0.00021917,2]
[363115735,1748586643845,-722.59,0.00021917,2]
[363115736,1748586643854,-1357.31,0.00021917,2]
[363115737,1748586643865,-849.02,0.00021917,2]
[363115738,1748586643874,-618.56,0.00021917,2]
[363115739,1748586643883,-420.0,0.00021917,2]
[363115740,1748586643893,-420.0,0.00021917,2]
[363115741,1748586643902,-494.94,0.00021917,2]
[363115742,1748586643912,-3268.18,0.00021917,2]
[363115743,1748586643921,-1045.33,0.00021917,2]
[363115744,1748586643930,-420.0,0.00021917,2]
[363115745,1748586643940,-1794.76,0.00021917,2]
[363115746,1748586643951,-603.65,0.00021917,2]
[363115747,1748586643960,-420.0,0.00021917,2]
[363115748,1748586643969,-1087.33,0.00021917,2]
[363115749,1748586643979,-420.0,0.00021917,2]
[363115750,1748586643988,-420.0,0.00021917,2]
[363115751,1748586643998,-153.32218622,0.00021917,2]
[363115752,1748586644007,-472.64,0.00021917,2]
[363115753,1748586644017,-537.94,0.00021917,2]
[363115754,1748586644027,-10081.67,0.00021917,2]
[363115755,1748586644036,-1449.5,0.00021917,2]
[363115756,1748586644045,-420.0,0.00021917,2]
[363115757,1748586644054,-439.53,0.00021917,2]
[363115758,1748586644063,-420.0,0.00021917,2]
[363115759,1748586644073,-420.0,0.00021917,2]
[363115760,1748586644082,-551.72,0.00021917,2]
[363115761,1748586644091,-1005.59,0.00021917,2]
[363115762,1748586644101,-13091.21,0.00021917,2]
[363115763,1748586644110,-1458.58,0.00021917,2]
[363115764,1748586644120,-420.0,0.00021917,2]
[363115765,1748586644129,-428.94,0.00021917,2]
[363115766,1748586644138,-737.44,0.00021917,2]
[363115767,1748586644147,-424.29767535,0.00021917,2]
[363115768,1748586644156,-666.14,0.00021917,2]